fUSD/lending_fUSD_20240506
["ID","MTS","AMOUNT","RATE_DAILY","PERIOD"]
[326503338,1715026245497,-240.83393716,0.00019898,2]
[326503339,1715026245507,-258.47419654,0.00019898,2]
[326503340,1715026245518,-103.56474664,0.00019898,2]
[326503341,1715026245863,-52.53056106,0.00019898,2]
[326503342,1715026245877,-194.33549593,0.00019898,2]
[326503343,1715026245887,-11438.8713581,0.000199,2]
[326503344,1715026245897,-11438.87135809,0.000199,2]
[326503345,1715026245908,-154.55525911,0.00019926,2]
[326503346,1715026245920,-479.4,0.00019989,2]
[326503347,1715026245930,-155.0,0.0002,2]
[326503348,1715026245944,-271.85999851,0.0002,2]
[326503349,1715026245956,-443.64487331,0.0002,2]
[326503350,1715026245967,-626.86050269,0.0002,2]
[326503351,1715026245977,-1259.96596893,0.0002,2]
[326503352,1715026245987,-155.0,0.0002,2]
[326503353,1715026245998,-1300.0,0.0002,3]
[326503354,1715026246009,-1000.0,0.0002,2]
[326503355,1715026246023,-1000.0,0.0002,2]
[326503356,1715026246034,-271.55726356,0.00020003,2]
[326503357,1715026246045,-4858.08973795,0.00020008,2]
[326503358,1715026246057,-3261.76192147,0.00020045,2]
[326503359,1715026246067,-638.1886247,0.00020075,2]
[326503360,1715026246084,-913.82159658,0.00020114,2]
[326503361,1715026246094,-326.98,0.00020181,2]
[326503362,1715026246104,-182.66172595,0.00020214,2]
[326503363,1715026246115,-154.55525911,0.00020297,2]
[326503364,1715026246125,-638.1886247,0.00020497,2]
[326503365,1715026246135,-155.0,0.000205,2]
[326503366,1715026246145,-150.0,0.000205,2]
[326503367,1715026246157,-153.07187295,0.00020503,2]
[326503368,1715026246168,-153.07187295,0.00020551,2]
[326503369,1715026246180,-10000.0,0.00020586,2]
[326503370,1715026246190,-153.07187295,0.00020628,2]
[326503371,1715026246203,-154.14732117,0.00020775,2]
[326503372,1715026246214,-271.55726356,0.00020791,2]
[326503373,1715026246224,-4858.08973795,0.00020817,2]
[326503374,1715026246234,-3261.76192147,0.00020849,2]
[326503375,1715026246244,-913.82159653,0.00020866,2]
[326503376,1715026246254,-189.51,0.00020892,2]
[326503377,1715026246264,-155.0,0.000209,2]
[326503378,1715026246276,-718.82272761,0.00021,2]
[326503379,1715026246286,-1000.0,0.00021,3]
[326503380,1715026246297,-150.0,0.00021,2]
[326503381,1715026246307,-180.00567291,0.00021021,2]
[326503382,1715026246316,-159.88474948,0.00021077,2]
[326503383,1715026246326,-153.07187295,0.00021088,2]
[326503384,1715026246342,-1000.0,0.000211,2]
[326503385,1715026246364,-20000.0,0.00021113,2]
[326503386,1715026246374,-271.55726356,0.00021166,2]
[326503387,1715026246384,-166.03085822,0.00021171,2]
[326503388,1715026246393,-151.68738032,0.00021248,2]
[326503389,1715026246406,-638.1886247,0.00021328,2]
[326503390,1715026246415,-181.05,0.00021401,2]
[326503391,1715026246425,-151.68738032,0.00021433,2]
[326503392,1715026246435,-150.0,0.000215,3]
[326503393,1715026246445,-699.86,0.00021541,2]
[326503394,1715026246454,-150.0,0.00021541,2]
[326503395,1715026246464,-20000.0,0.00021551,2]
[326503396,1715026246474,-2343.21,0.00021552,2]
[326503397,1715026246484,-154.55525911,0.00021606,2]
[326503398,1715026246493,-913.82159653,0.00021618,2]
[326503399,1715026246503,-4858.08973795,0.00021625,2]
[326503400,1715026246513,-3261.76192147,0.00021652,2]
[326503401,1715026246524,-154.96039253,0.00021705,2]
[326503402,1715026246534,-271.55726356,0.00021741,2]
[326503403,1715026246544,-154.55525911,0.00021754,2]
[326503404,1715026246554,-271.55726356,0.00021792,2]
[326503405,1715026246563,-310.39134239,0.000218,2]
[326503406,1715026246573,-11438.87135809,0.000218,2]
[326503407,1715026246582,-154.55525911,0.00021829,2]
[326503408,1715026246595,-156.03484494,0.00021866,2]
[326503409,1715026246604,-33630.05757118,0.0002188,2]
[326503410,1715026246613,-400.0,0.000219,2]
[326503411,1715026246623,-1250.0,0.000219,2]
[326503412,1715026246632,-1000.0,0.000219,2]
[326503413,1715026246643,-250.0,0.00021918,2]
[326503414,1715026246652,-2000.0,0.00021918,3]
[326503415,1715026246662,-2000.0,0.00021918,2]
[326503416,1715026246673,-250.0,0.00021918,2]
[326503417,1715026246683,-152.57778557,0.00021966,2]
[326503418,1715026246695,-154.55525911,0.00021969,2]
[326503419,1715026246705,-479.4,0.00021988,2]
[326503420,1715026246716,-697.14912318,0.00022,2]
[326503421,1715026246752,-786.0242669,0.00022,2]
[326503422,1715026246762,-1350.0,0.00022,3]
[326503423,1715026246774,-155.30185794,0.00022,2]
[326503424,1715026246783,-500.0,0.00022,2]
[326503425,1715026246792,-500.0,0.00022,2]
[326503426,1715026246802,-500.0,0.00022,2]
[326503427,1715026246811,-500.0,0.00022,2]
[326503428,1715026246821,-500.0,0.00022,2]
[326503429,1715026246831,-500.0,0.00022,2]
[326503430,1715026246840,-500.0,0.00022,2]
[326503431,1715026246850,-500.0,0.00022,2]
[326503432,1715026246859,-500.0,0.00022,2]
[326503433,1715026246869,-500.0,0.00022,2]
[326503434,1715026246879,-500.0,0.00022,2]
[326503435,1715026246889,-500.0,0.00022,2]
[326503436,1715026246899,-500.0,0.00022,2]
[326503437,1715026246908,-500.0,0.00022,2]
[326503438,1715026246918,-500.0,0.00022,2]
[326503439,1715026246927,-500.0,0.00022,2]
[326503440,1715026246936,-500.0,0.00022,2]
[326503441,1715026246946,-500.0,0.00022,2]
[326503442,1715026246956,-500.0,0.00022,2]
[326503443,1715026246966,-500.0,0.00022,2]
[326503444,1715026246976,-500.0,0.00022,2]
[326503445,1715026246986,-500.0,0.00022,2]
[326503446,1715026246996,-500.0,0.00022,2]
[326503447,1715026247006,-500.0,0.00022,2]
[326503448,1715026247017,-473.07,0.00022,2]
[326503449,1715026247027,-1008.0,0.00022,3]
[326503450,1715026247036,-500.0,0.00022,2]
[326503451,1715026247046,-500.0,0.00022,2]
[326503452,1715026247056,-500.0,0.00022,2]
[326503453,1715026247066,-500.0,0.00022,2]
[326503454,1715026247075,-500.0,0.00022,2]
[326503455,1715026247085,-500.0,0.00022,2]
[326503456,1715026247095,-500.0,0.00022,2]
[326503457,1715026247104,-500.0,0.00022,2]
[326503458,1715026247113,-500.0,0.00022,2]
[326503459,1715026247123,-500.0,0.00022,2]
[326503460,1715026247133,-500.0,0.00022,2]
[326503461,1715026247143,-500.0,0.00022,2]
[326503462,1715026247152,-500.0,0.00022,2]
[326503463,1715026247162,-500.0,0.00022,2]
[326503464,1715026247171,-500.0,0.00022,2]
[326503465,1715026247181,-500.0,0.00022,2]
[326503466,1715026247191,-500.0,0.00022,2]
[326503467,1715026247201,-500.0,0.00022,2]
[326503468,1715026247211,-500.0,0.00022,2]
[326503469,1715026247220,-500.0,0.00022,2]
[326503470,1715026247230,-500.0,0.00022,2]
[326503471,1715026247239,-500.0,0.00022,2]
[326503472,1715026247249,-500.0,0.00022,2]
[326503473,1715026247258,-500.0,0.00022,2]
[326503474,1715026247269,-500.0,0.00022,2]
[326503475,1715026247279,-500.0,0.00022,2]
[326503476,1715026247288,-500.0,0.00022,2]
[326503477,1715026247298,-500.0,0.00022,2]
[326503478,1715026247307,-500.0,0.00022,2]
[326503479,1715026247317,-500.0,0.00022,2]
[326503480,1715026247327,-500.0,0.00022,2]
[326503481,1715026247336,-500.0,0.00022,2]
[326503482,1715026247345,-500.0,0.00022,2]
[326503483,1715026247355,-500.0,0.00022,2]
[326503484,1715026247365,-500.0,0.00022,2]
[326503485,1715026247375,-500.0,0.00022,2]
[326503486,1715026247384,-356.54,0.00022,2]
[326503487,1715026247394,-150.0,0.00022,3]
[326503488,1715026247404,-258.058,0.00022073,2]
[326503489,1715026247414,-1218.0,0.00022073,2]
[326503490,1715026247424,-541.0,0.00022073,2]
[326503491,1715026247433,-1257.0,0.00022073,2]
[326503492,1715026247445,-3131.0,0.00022073,2]
[326503493,1715026247455,-1244.68,0.00022073,2]
[326503494,1715026247464,-608.997,0.00022073,2]
[326503495,1715026247473,-152.08051347,0.00022092,2]
[326503496,1715026247483,-638.1886247,0.00022161,2]
[326503497,1715026247493,-300.0,0.00022222,2]
[326503498,1715026247502,-150.0,0.0002231,2]
[326503499,1715026247512,-522.94,0.00022319,2]
[326503500,1715026247523,-150.0,0.00022344,2]
[326503501,1715026247533,-150.0,0.00022346,2]
[326503502,1715026247543,-150.0,0.00022352,2]
[326503503,1715026247552,-150.0,0.00022352,2]
[326503504,1715026247563,-150.0,0.00022362,2]
[326503505,1715026247572,-150.0,0.00022362,2]
[326503506,1715026247582,-586.0,0.0002237,2]
[326503507,1715026247596,-913.82159653,0.0002237,2]
[326503508,1715026247605,-150.0,0.00022376,2]
[326503509,1715026247614,-150.0,0.00022378,2]
[326503510,1715026247624,-25000.0,0.0002238,2]
[326503511,1715026247635,-150.0,0.00022384,2]
[326503512,1715026247644,-150.0,0.00022388,2]
[326503513,1715026247653,-150.0,0.00022388,2]
[326503514,1715026247663,-25000.0,0.0002239,2]
[326503515,1715026247675,-150.0,0.00022397,2]
[326503516,1715026247685,-25000.0,0.000224,2]
[326503517,1715026247695,-150.0,0.00022405,2]
[326503518,1715026247704,-150.0,0.00022406,2]
[326503519,1715026247713,-150.0,0.00022414,2]
[326503520,1715026247725,-150.0,0.00022426,2]
[326503521,1715026247735,-4858.08973795,0.00022433,2]
[326503522,1715026247745,-154.55525911,0.00022436,2]
[326503523,1715026247754,-150.0,0.00022449,2]
[326503524,1715026247764,-150.0,0.00022453,2]
[326503525,1715026247775,-3261.76192147,0.00022456,2]
[326503526,1715026247785,-600.0,0.00022464,2]
[326503527,1715026247794,-150.0,0.00022474,2]
[326503528,1715026247804,-150.0,0.00022476,2]
[326503529,1715026247813,-300.739962,0.00022476,2]
[326503530,1715026247823,-150.0,0.00022487,2]
[326503531,1715026247833,-150.0,0.00022496,2]
[326503532,1715026247842,-150.0,0.000225,3]
[326503533,1715026247852,-150.0,0.00022506,2]
[326503534,1715026247861,-150.0,0.00022514,2]
[326503535,1715026247871,-150.0,0.0002252,2]
[326503536,1715026247881,-150.0,0.00022522,2]
[326503537,1715026247890,-150.0,0.00022533,2]
[326503538,1715026247901,-150.0,0.00022547,2]
[326503539,1715026247910,-150.0,0.0002255,2]
[326503540,1715026247919,-150.0,0.00022552,2]
[326503541,1715026247929,-150.0,0.00022553,2]
[326503542,1715026247938,-150.0,0.00022563,2]
[326503543,1715026247948,-150.0,0.00022564,2]
[326503544,1715026247957,-150.0,0.00022566,2]
[326503545,1715026247967,-150.0,0.00022568,2]
[326503546,1715026247976,-150.0,0.00022568,2]
[326503547,1715026247985,-150.0,0.00022589,2]
[326503548,1715026247995,-150.0,0.0002261,2]
[326503549,1715026248004,-150.0,0.00022616,2]
[326503550,1715026248013,-150.0,0.00022617,2]
[326503551,1715026248025,-150.0,0.00022628,2]
[326503552,1715026248034,-150.0,0.00022628,2]
[326503553,1715026248043,-150.0,0.00022628,2]
[326503554,1715026248053,-150.0,0.00022637,2]
[326503555,1715026248062,-150.0,0.00022641,2]
[326503556,1715026248071,-158.5390509,0.00022643,2]
[326503557,1715026248080,-20000.0,0.00022653,2]
[326503558,1715026248090,-150.0,0.00022659,2]
[326503559,1715026248100,-152.57778557,0.00022669,2]
[326503560,1715026248109,-150.0,0.0002267,2]
[326503561,1715026248118,-150.0,0.00022673,2]
[326503562,1715026248128,-150.0,0.00022675,2]
[326503563,1715026248138,-150.0,0.00022675,2]
[326503564,1715026248148,-150.0,0.00022677,2]
[326503565,1715026248158,-150.0,0.0002268,2]
[326503566,1715026248167,-5658.32410198,0.000227,7]
[326503567,1715026248178,-150.0,0.00022701,2]
[326503568,1715026248190,-153.94026569,0.00022708,2]
[326503569,1715026248200,-150.0,0.0002271,2]
[326503570,1715026248211,-150.0,0.0002271,2]
[326503571,1715026248221,-150.0,0.00022712,2]
[326503572,1715026248230,-154.55525911,0.00022721,2]
[326503573,1715026248240,-153.07187295,0.00022727,2]
[326503574,1715026248249,-150.0,0.00022731,2]
[326503575,1715026248259,-150.0,0.00022734,2]
[326503576,1715026248270,-150.0,0.00022737,2]
[326503577,1715026248279,-150.0,0.00022738,2]
[326503578,1715026248633,-500.0,0.00022738,2]
[326503579,1715026248644,-500.0,0.00022738,2]
[326503580,1715026248653,-150.0,0.0002274,2]
[326503581,1715026248663,-150.0,0.00022748,2]
[326503582,1715026248675,-150.0,0.0002275,2]
[326503583,1715026248685,-150.0,0.00022752,2]
[326503584,1715026248695,-150.0,0.00022759,2]
[326503585,1715026248705,-150.0,0.0002276,2]
[326503586,1715026248715,-150.0,0.00022772,2]
[326503587,1715026248726,-255.385396,0.0002278,2]
[326503588,1715026248736,-150.0,0.00022785,2]
[326503589,1715026248746,-150.0,0.00022785,2]
[326503590,1715026248756,-150.0,0.00022794,2]
[326503591,1715026248767,-150.0,0.00022798,2]
[326503592,1715026248777,-10213.8289762,0.000228,3]
[326503593,1715026248787,-150.0,0.000228,2]
[326503594,1715026248797,-200.0,0.00022812,2]
[326503595,1715026248808,-200.0,0.00022814,2]
[326503596,1715026248817,-1000.0,0.00022814,2]
[326503597,1715026248828,-500.0,0.00022814,2]
[326503598,1715026248838,-200.0,0.00022814,2]
[326503599,1715026248848,-200.0,0.00022815,2]
[326503600,1715026248858,-500.0,0.00022815,2]
[326503601,1715026248869,-150.0,0.00022816,2]
[326503602,1715026248878,-150.0,0.00022824,2]
[326503603,1715026248889,-150.0,0.00022825,2]
[326503604,1715026248899,-150.0,0.00022826,2]
[326503605,1715026248909,-150.0,0.0002283,2]
[326503606,1715026248920,-150.0,0.00022832,2]
[326503607,1715026248929,-150.0,0.00022836,2]
[326503608,1715026248940,-150.0,0.00022846,2]
[326503609,1715026248951,-150.0,0.0002285,2]
[326503610,1715026248960,-150.0,0.00022859,2]
[326503611,1715026248970,-150.0,0.00022863,2]
[326503612,1715026248980,-150.0,0.00022863,2]
[326503613,1715026248989,-534.0,0.00022863,2]
[326503614,1715026248998,-150.0,0.00022866,2]
[326503615,1715026249007,-150.0,0.00022867,2]
[326503616,1715026249017,-156.23613389,0.0002287,2]
[326503617,1715026249026,-150.0,0.00022879,2]
[326503618,1715026249036,-150.0,0.00022881,2]
[326503619,1715026249045,-154.14732117,0.00022881,2]
[326503620,1715026249117,-153.24,0.0002289,2]
[326503623,1715026249134,-409.56464642,0.00022895,2]
[326503625,1715026249145,-336.29347923,0.00022898,2]
[326503628,1715026249155,-155.43298163,0.00022898,2]
[326503630,1715026249165,-171.27882734,0.00022898,2]
[326503632,1715026249175,-470.28425654,0.00022898,2]
[326503634,1715026249195,-191.72963264,0.00022898,2]
[326503636,1715026249205,-156.65392387,0.00022899,2]
[326503638,1715026249215,-3658.63465762,0.00022899,2]
[326503640,1715026249225,-10000.0,0.000229,2]
[326503641,1715026249235,-166.27153992,0.000229,2]
[326503642,1715026249245,-8117.85326286,0.000229,2]
[326503643,1715026249255,-153.10102609,0.000229,2]
[326503644,1715026249267,-1698.49346495,0.000229,2]
[326503645,1715026249277,-150.0,0.00022914,2]
[326503646,1715026249286,-150.0,0.0002292,2]
[326503647,1715026249296,-150.0,0.00022924,2]
[326503648,1715026249306,-150.0,0.00022937,2]
[326503649,1715026249316,-150.0,0.00022937,2]
[326503650,1715026249326,-150.0,0.00022945,2]
[326503651,1715026249336,-150.0,0.0002295,2]
[326503652,1715026249348,-150.0,0.00022953,2]
[326503653,1715026249358,-150.0,0.00022959,2]
[326503654,1715026249368,-174.0,0.0002297,15]
[326503655,1715026249378,-1000.0,0.0002297,2]
[326503656,1715026249388,-1700.0,0.0002297,2]
[326503657,1715026249398,-800.62615796,0.0002297,2]
[326503658,1715026249409,-150.0,0.00022974,2]
[326503659,1715026249419,-843823.96638618,0.00022978,2]
[326503660,1715026249429,-174.0,0.0002298,15]
[326503661,1715026249438,-150.0,0.00022987,2]
[326503662,1715026249449,-174.0,0.0002299,15]
[326503663,1715026249459,-173.0,0.0002299,13]
[326503664,1715026249468,-299.87,0.0002299,15]
[326503665,1715026249478,-811.68228796,0.00022998,2]
[326503666,1715026249488,-407.30096232,0.00022998,2]
[326503667,1715026249497,-184.05186467,0.00022998,2]
[326503668,1715026249507,-860.48028371,0.00022998,2]
[326503669,1715026249517,-6757.61638509,0.00022998,2]
[326503670,1715026249527,-404.22187469,0.00022998,2]
[326503671,1715026249537,-166.41528779,0.00022998,2]
[326503672,1715026249547,-6227.01127323,0.00022998,2]
[326503673,1715026249556,-155.33392723,0.00022998,2]
[326503675,1715026249566,-5175.72990395,0.00022998,2]
[326503677,1715026249576,-1152.7895605,0.00022999,2]
[326503679,1715026249588,-1037.98964315,0.00022999,10]
[326503680,1715026249600,-1037.98964315,0.00022999,10]
[326503681,1715026249610,-205209.92869383,0.00023,2]
[326503682,1715026249619,-951336.94455107,0.00023,2]
[326503683,1715026249636,-1668640.79957852,0.00023,2]
[326503684,1715026251382,-203.53652141,0.00017259,2]
[326503685,1715026251392,-325.25047357,0.00017259,2]
[326503686,1715026251402,-803.85791885,0.00020586,2]
[326503687,1715026277156,3649.236232,0.00012,2]
[326503690,1715027043296,150.0,0.00012897,2]
[326503692,1715027214669,200.0,0.00012833,30]
[326503693,1715027215080,200.0,0.00012833,30]
[326503694,1715027215497,209.30745953,0.00012833,30]
[326503695,1715027359270,200.0,0.00012769,30]
[326503737,1715027441912,-445.51154896,0.0001369,2]
[326503739,1715027441922,-193.02952027,0.0001369,2]
[326503741,1715027441937,-188.65310695,0.00013691,2]
[326503743,1715027441947,-744.54600348,0.00013693,2]
[326503745,1715027441958,-335.69085802,0.00013693,2]
[326503747,1715027441968,-771.69215318,0.00013693,7]
[326503749,1715027441981,-565.7615177,0.00013693,7]
[326503752,1715027441993,-783.275,0.00013693,7]
[326503754,1715027442007,-2245.32916777,0.00013693,7]
[326503759,1715027442524,-840.307,0.00013693,7]
[326503772,1715027442993,-2190.83348217,0.00013693,7]
[326503773,1715027443006,-795.75733402,0.00013693,7]
[326503774,1715027443021,-319.95,0.00013693,7]
[326503775,1715027443035,-680.35118621,0.00013693,7]
[326503776,1715027443045,-200.0,0.000137,2]
[326503777,1715027443055,-538.3518557,0.00015468,2]
[326503778,1715027443065,-248.44,0.00016238,2]
[326503779,1715027443076,-150.99,0.00016238,2]
[326503780,1715027443086,-539.82,0.00016238,2]
[326503781,1715027443096,-162.93435813,0.000163,2]
[326503782,1715027443105,-340.36726651,0.00016419,2]
[326503783,1715027443116,-340.36726651,0.00016488,2]
[326503784,1715027443126,-340.36726651,0.00016532,2]
[326503785,1715027443136,-340.36726651,0.00016556,2]
[326503786,1715027443146,-162.93435813,0.00016558,2]
[326503787,1715027443158,-162.93435813,0.00016566,2]
[326503788,1715027443170,-162.93435813,0.00016611,2]
[326503789,1715027443180,-154.14732117,0.00016641,2]
[326503790,1715027443190,-340.36726651,0.00016662,2]
[326503791,1715027443199,-162.93435813,0.00016692,2]
[326503792,1715027443209,-152.08051347,0.00016735,2]
[326503793,1715027443220,-340.36726651,0.00016795,2]
[326503794,1715027443230,-10720.51451534,0.00016864,2]
[326503795,1715027443243,-10948.70548466,0.00016864,2]
[326503797,1715027443253,-154.14732117,0.00016872,2]
[326503799,1715027443263,-236.2933772,0.00016972,2]
[326503801,1715027443274,-253.28,0.00016981,2]
[326503803,1715027443284,-159.93,0.00017053,2]
[326503805,1715027443294,-153.68811248,0.00017061,2]
[326503807,1715027443304,-154.14732117,0.00017115,2]
[326503809,1715027443314,-1020.383,0.00017159,2]
[326503810,1715027443323,-250.0,0.00017183,2]
[326503811,1715027443333,-154.55525911,0.00017197,2]
[326503812,1715027443343,-4692.74,0.00017199,2]
[326503813,1715027443354,-1500.0,0.00017211,2]
[326503814,1715027443363,-150.0,0.00017211,2]
[326503816,1715027443373,-4694.33125369,0.00017258,2]
[326503817,1715027443383,-155.48017252,0.00017259,2]
[326503818,1715027443392,-758.36535325,0.00017259,2]
[326503819,1715027443402,-160.05,0.00017295,2]
[326503820,1715027443412,-236.2933772,0.00017415,2]
[326503821,1715027443422,-159.8,0.00017416,2]
[326503822,1715027443431,-526.6,0.00017431,2]
[326503823,1715027443441,-236.2933772,0.00017451,2]
[326503824,1715027443450,-272.48,0.00017451,2]
[326503825,1715027443460,-340.36726651,0.00017494,2]
[326503826,1715027443470,-154.55525911,0.00017579,2]
[326503827,1715027443479,-151.68738032,0.00017628,2]
[326503828,1715027443489,-176.42,0.00017642,2]
[326503830,1715027443499,-340.36726651,0.0001765,2]
[326503831,1715027443509,-176.42,0.0001769,2]
[326503832,1715027443518,-152.08051347,0.00017716,2]
[326503834,1715027443529,-176.42,0.00017739,2]
[326503836,1715027443539,-166.68129127,0.00017769,2]
[326503838,1715027443549,-176.42,0.00017787,2]
[326503839,1715027443558,-162.93435813,0.000178,2]
[326503840,1715027443567,-300.0,0.000178,2]
[326503841,1715027443576,-176.42,0.00017835,2]
[326503842,1715027443586,-236.2933772,0.00017853,2]
[326503843,1715027443599,-176.42,0.00017884,2]
[326503844,1715027443609,-154.03738993,0.00017901,2]
[326503845,1715027443621,-154.03738993,0.00017912,2]
[326503846,1715027443633,-176.42,0.00017932,2]
[326503847,1715027443643,-176.42,0.0001798,2]
[326503848,1715027443652,-1250.0,0.00018,3]
[326503849,1715027443662,-176.42,0.00018029,2]
[326503850,1715027443672,-157.47051715,0.00018067,2]
[326503851,1715027443683,-236.2933772,0.00018075,2]
[326503852,1715027443692,-176.42,0.00018077,2]
[326503853,1715027443702,-176.42,0.00018126,2]
[326503854,1715027443711,-176.43,0.00018165,2]
[326503855,1715027443721,-176.42,0.00018174,2]
[326503856,1715027443731,-176.42,0.00018222,2]
[326503857,1715027443741,-176.42,0.00018271,2]
[326503858,1715027443753,-162.93435813,0.00018306,2]
[326503859,1715027443764,-176.42,0.00018319,2]
[326503860,1715027443778,-176.42,0.00018368,2]
[326503861,1715027443788,-162.93435813,0.00018407,2]
[326503862,1715027443798,-176.42,0.00018416,2]
[326503863,1715027443807,-162.93435813,0.00018432,2]
[326503864,1715027443817,-176.42,0.00018464,2]
[326503865,1715027443826,-176.42,0.00018513,2]
[326503866,1715027443836,-176.42,0.00018561,2]
[326503867,1715027443848,-340.36726651,0.00018595,2]
[326503868,1715027443860,-153.68811248,0.00018644,2]
[326503869,1715027443870,-153.94026568,0.00018645,2]
[326503870,1715027443880,-166.68129127,0.00018692,2]
[326503871,1715027443890,-154.55525911,0.00018702,2]
[326503872,1715027443900,-1057.6,0.00019023,2]
[326503873,1715027443909,-157.47051715,0.00019053,2]
[326503874,1715027443919,-153.68811248,0.00019079,2]
[326503875,1715027443936,-157.47051715,0.00019085,2]
[326503876,1715027443945,-162.25,0.00019178,2]
[326503877,1715027443955,-340.36726651,0.00019211,2]
[326503878,1715027443964,-166.01,0.0001932,2]
[326503879,1715027443975,-154.14732117,0.00019496,2]
[326503880,1715027443985,-340.36726651,0.00019509,2]
[326503881,1715027443995,-162.93435813,0.00019554,2]
[326503882,1715027444005,-154.14732117,0.00019574,2]
[326503883,1715027444016,-3873.0,0.000196,2]
[326503884,1715027444027,-152.90457257,0.00019602,2]
[326503885,1715027444038,-526.6,0.0001961,2]
[326503886,1715027444048,-1000.0,0.00019696,2]
[326503887,1715027444058,-1037.51160232,0.00019697,2]
[326503888,1715027444071,-814.6072391,0.00019722,2]
[326503889,1715027444082,-807.31947019,0.00019723,2]
[326503890,1715027444092,-219.31968758,0.00019723,2]
[326503891,1715027444102,-342.92658604,0.00019724,2]
[326503892,1715027444112,-203.85766731,0.00019725,2]
[326503893,1715027444121,-1414.81668205,0.00019725,2]
[326503894,1715027444131,-154.55525911,0.00019727,2]
[326503895,1715027444140,-162.93435813,0.00019838,2]
[326503896,1715027444151,-166.68129127,0.00019882,2]
[326503897,1715027444161,-500.0,0.00019899,2]
[326503898,1715027444170,-2429.04486902,0.00019902,2]
[326503899,1715027444180,-175.02029045,0.00019902,2]
[326503900,1715027444189,-157.44,0.0001999,2]
[326503901,1715027444198,-185.03,0.0001999,2]
[326503902,1715027444208,-1300.0,0.0002,3]
[326503903,1715027444218,-216885.82153812,0.0002,2]
[326503904,1715027444227,-154.55525911,0.00020353,2]
[326503905,1715027444237,-154.96039253,0.00020354,2]
[326503906,1715027444247,-154.25989625,0.0002036,2]
[326503907,1715027444258,-166.32939386,0.00020418,2]
[326503908,1715027444269,-236.2933772,0.00020486,2]
[326503909,1715027444279,-155.0,0.000205,2]
[326503910,1715027444288,-499.99,0.00020546,2]
[326503911,1715027444298,-154.55525911,0.00020599,2]
[326503912,1715027444307,-154.03738993,0.00020642,2]
[326503913,1715027444317,-158.1088405,0.00020655,2]
[326503914,1715027444327,-2429.04486897,0.00020663,2]
[326503915,1715027444336,-236.2933772,0.00020676,2]
[326503917,1715027444346,-202.39861603,0.00020698,2]
[326503920,1715027444355,-154.55525911,0.00020752,2]
[326503922,1715027444368,-340.36726651,0.00020764,2]
[326503924,1715027444378,-154.96039253,0.00020773,2]
[326503927,1715027444388,-159.62222747,0.00020788,2]
[326503929,1715027444398,-175.02029044,0.0002079,2]
[326503931,1715027444407,-153.68811248,0.00020822,2]
[326503932,1715027444418,-155.0,0.000209,2]
[326503933,1715027444428,-340.36726651,0.00021065,2]
[326503934,1715027444437,-154.14732117,0.00021229,2]
[326503935,1715027444448,-153.07187297,0.00021313,2]
[326503936,1715027444459,-159.93,0.00021316,2]
[326503937,1715027444469,-1000.0,0.00021347,2]
[326503938,1715027444482,-154.55525911,0.00021355,2]
[326503939,1715027444492,-236.2933772,0.00021373,2]
[326503940,1715027444502,-236.2933772,0.00021374,2]
[326503941,1715027444512,-2429.04486897,0.00021424,2]